bitfinex/quotes_SOLUSD_20260102
["timestamp","ask_amount","ask_price","bid_price","bid_amount"]
[1767353754899,3.1488157,128.35,128.33,8.48836347]
[1767353755300,3.1488157,128.35,128.34,0.69599115]
[1767353755808,3.1188157,128.35,128.34,0.69599115]
[1767353756912,3.1488157,128.36,128.34,0.69599115]
[1767353757113,3.1188157,128.36,128.34,0.69599115]
[1767353758514,3.84721189,128.37,128.35,0.67213758]
[1767353760010,3.1488157,128.36,128.35,0.67213758]
[1767353760617,3.1488157,128.36,128.33,7.79210319]
[1767353760923,3.1488157,128.36,128.34,0.67213758]
[1767353761124,3.1488157,128.37,128.34,7.79179741]
[1767353761327,3.82597633,128.38,128.35,8.46330809]
[1767353761500,3.1488157,128.37,128.35,8.46330809]
[1767353762423,3.1488157,128.4,128.37,0.18639298]
[1767353762715,2.69262095,128.4,128.37,0.18639298]
[1767353763301,2.69262095,128.4,128.37,7.97628752]
[1767353765619,2.69262095,128.4,128.36,7.97698194]
[1767353766205,2.69262095,128.4,128.36,9.99244226]
[1767353766412,2.69262095,128.4,128.36,7.97698194]
[1767353768032,2.69262095,128.4,128.36,9.99244226]
[1767353769417,2.69262095,128.4,128.36,9.80604928]
[1767353769620,2.69262095,128.4,128.37,7.97588459]
[1767353772243,0.67716063,128.4,128.37,7.97588459]
[1767353772438,2.69262095,128.4,128.37,7.97588459]
[1767353773636,0.67716063,128.4,128.37,9.99134491]
[1767353776343,2.01546032,128.41,128.37,9.99134491]
[1767353776344,0.67716063,128.42,128.38,0.18639298]
[1767353776526,2.69262095,128.42,128.38,0.18639298]
[1767353777045,2.69262095,128.41,128.38,0.18639298]
[1767353780537,2.69262095,128.41,128.38,7.9756936]
[1767353783928,2.69262095,128.42,128.39,0.18639298]
[1767353784431,0.67716063,128.42,128.39,0.18639298]
[1767353784753,2.69262095,128.42,128.39,0.18639298]
[1767353785452,2.69262095,128.42,128.39,7.97511977]
[1767353786554,0.67716063,128.42,128.39,7.97511977]
[1767353787846,0.71776819,128.44,128.4,0.18639298]
[1767353788048,0.71776819,128.43,128.4,0.18639298]
[1767353788244,2.73322851,128.43,128.4,0.18639298]
[1767353788443,2.73322851,128.42,128.39,7.97511977]
[1767353788753,0.71776819,128.41,128.39,0.18639298]
[1767353789148,0.71776819,128.41,128.39,7.97514781]
[1767353789542,0.68776819,128.41,128.39,7.97514781]
[1767353790456,2.01546032,128.42,128.39,7.97514781]
[1767353791450,2.73322851,128.42,128.39,7.97514781]
[1767353791846,2.73322851,128.45,128.4,2.79427651]
[1767353792049,0.71776819,128.44,128.4,2.79427651]
[1767353792241,2.73322851,128.44,128.4,2.79427651]
[1767353793043,45.70708538,128.48,128.4,1.47569497]
[1767353793234,2.01546032,128.44,128.4,3.49115529]
[1767353793434,2.01546032,128.44,128.41,0.69687878]
[1767353794154,41.66176028,128.48,128.41,8.48386618]
[1767353794364,2.01546032,128.44,128.41,8.48386618]
[1767353795053,2.73322851,128.44,128.41,8.48386618]
[1767353796657,0.71776819,128.44,128.41,8.48386618]
[1767353797160,0.71776819,128.46,128.42,0.69687878]
[1767353797461,0.71776819,128.44,128.42,0.69687878]
[1767353799375,0.71776819,128.44,128.42,10.49926394]
[1767353800266,2.01546032,128.46,128.42,10.49926394]
[1767353800267,0.71776819,128.45,128.42,10.49926394]
[1767353800481,0.2,128.48,128.42,7.78692484]
[1767353800663,0.2,128.48,128.44,2.7123391]
[1767353800664,0.71776819,128.47,128.44,2.7123391]
[1767353800853,0.71776819,128.47,128.44,8.48260331]
[1767353801175,0.71776819,128.47,128.44,10.49806363]
[1767353801980,0.71776819,128.47,128.44,8.48260331]
[1767353802151,0.91776819,128.48,128.45,0.69687878]
[1767353803075,0.91776819,128.48,128.45,8.48196672]
[1767353804652,0.2,128.48,128.46,0.69687878]
[1767353807480,2.73322851,128.47,128.44,0.69687878]
[1767353807656,2.01546032,128.46,128.44,0.69687878]
[1767353807862,2.73322851,128.47,128.44,0.69687878]
[1767353808380,2.73322851,128.46,128.43,7.78608886]
[1767353808563,2.73322851,128.44,128.4,8.48473682]
[1767353808880,2.73322851,128.42,128.38,7.78924346]
[1767353809074,2.73322851,128.42,128.38,8.48612224]
[1767353809075,2.01546032,128.41,128.38,8.48612224]
[1767353810959,2.73322851,128.42,128.38,8.48612224]
[1767353812785,0.71776819,128.42,128.38,8.48612224]
[1767353812968,2.01546032,128.41,128.38,8.48612224]
[1767353813284,2.73322851,128.42,128.38,8.48612224]
[1767353813991,0.71776819,128.42,128.39,9.803897]
[1767353815192,14.22,128.45,128.39,9.803897]
[1767353815394,14.22,128.45,128.41,2.7123391]
[1767353815569,7.78487083,128.46,128.41,0.69687878]
[1767353815570,0.71776819,128.44,128.41,0.69687878]
[1767353815770,0.71776819,128.44,128.42,2.01546032]
[1767353815979,0.71776819,128.44,128.41,8.48405421]
[1767353816184,0.71776819,128.44,128.42,2.01546032]
[1767353819483,0.71776819,128.44,128.41,8.48405421]
[1767353819802,0.71776819,128.44,128.42,2.01546032]
[1767353819997,9.80033115,128.46,128.41,7.78717543]
[1767353820200,0.68830381,128.46,128.43,2.01546032]
[1767353821009,0.68830381,128.46,128.44,2.01546032]
[1767353821174,0.88830381,128.48,128.45,2.01546032]
[1767353821504,0.68830381,128.47,128.44,10.51213787]
[1767353821702,0.68830381,128.47,128.45,2.01546032]
[1767353824586,0.68830381,128.47,128.45,3.14541271]
[1767353825206,0.68830381,128.47,128.46,3.14541271]
[1767353825414,0.88830381,128.48,128.46,3.14541271]
[1767353826918,0.88830381,128.48,128.45,8.49624477]
[1767353827093,0.88830381,128.48,128.46,3.14541271]
[1767353827613,0.2,128.49,128.47,3.14541271]
[1767353827792,0.2,128.49,128.48,3.14541271]
[1767353828113,0.2,128.49,128.47,3.14541271]
[1767353829312,0.2,128.49,128.46,3.85653199]
[1767353829614,0.88830381,128.49,128.46,3.85653199]
[1767353829798,0.85830381,128.49,128.46,3.85653199]
[1767353830292,0.85830381,128.49,128.46,11.64101696]
[1767353831207,0.85830381,128.49,128.46,8.49560425]
[1767353831390,0.85830381,128.49,128.46,11.64101696]
[1767353832917,0.85830381,128.49,128.46,3.85653199]
[1767353833312,0.68830381,128.48,128.45,10.930225]
[1767353834012,0.68830381,128.48,128.45,7.78481229]
[1767353834916,0.68830381,128.48,128.42,15.7786949]
[1767353835117,3.14541271,128.44,128.41,8.49860628]
[1767353835316,3.14541271,128.44,128.4,10.93327142]
[1767353835620,3.14541271,128.43,128.4,8.49897799]
[1767353836407,3.14541271,128.44,128.4,11.6443907]
[1767353836810,3.83371652,128.44,128.4,11.6443907]
[1767353837012,0.68830381,128.43,128.4,8.49897799]
[1767353837319,3.80371652,128.43,128.4,8.49897799]
[1767353839926,0.68830381,128.45,128.4,8.49897799]
[1767353840126,3.83371652,128.44,128.4,11.6443907]
[1767353840306,0.68830381,128.43,128.4,11.6443907]
[1767353843747,0.68830381,128.43,128.4,8.49897799]
[1767353843910,0.68830381,128.42,128.4,8.49897799]
[1767353844340,3.83371652,128.43,128.4,0.71111928]
[1767353846470,0.68830381,128.43,128.4,3.85653199]
[1767353846745,0.68830381,128.43,128.4,0.71111928]
[1767353846947,0.68830381,128.43,128.4,3.85653199]
[1767353847109,0.68830381,128.43,128.4,11.64465057]
[1767353848116,0.68830381,128.43,128.4,8.49923786]
[1767353848331,0.68830381,128.43,128.4,11.64465057]
[1767353853859,0.68830381,128.43,128.4,8.49923786]
[1767353856866,0.68830381,128.43,128.4,11.64465057]
[1767353859882,0.68830381,128.43,128.4,8.49923786]
[1767353860053,3.83371652,128.43,128.4,8.49923786]
[1767353860252,0.68196748,128.42,128.4,8.49923786]
[1767353862281,3.14541271,128.44,128.4,8.49923786]
[1767353862459,0.68196748,128.43,128.4,8.49923786]
[1767353865785,0.68196748,128.43,128.4,11.64465057]
[1767353869885,0.68196748,128.43,128.41,0.68003326]
[1767353870385,0.68196748,128.43,128.4,10.93353129]
[1767353870587,0.68196748,128.43,128.4,11.61356455]
[1767353873060,0.68196748,128.43,128.4,8.46815184]
[1767353873266,0.68196748,128.43,128.4,11.61356455]
[1767353873489,0.68196748,128.43,128.4,8.46815184]
[1767353873988,0.68196748,128.43,128.4,11.61356455]
[1767353876385,0.68196748,128.43,128.4,8.46815184]
[1767353876691,0.68196748,128.43,128.4,11.61356455]
[1767353877188,0.68196748,128.43,128.4,8.46815184]
[1767353877870,0.65196748,128.43,128.4,8.46815184]
[1767353882888,0.65196748,128.43,128.4,11.61356455]
[1767353883268,0.6751384,128.45,128.43,0.69552182]
[1767353883476,5.77802067,128.44,128.43,0.69552182]
[1767353884489,5.77802067,128.44,128.42,3.14541271]
[1767353884694,0.6751384,128.45,128.42,3.84093453]
[1767353884988,5.7775613,128.44,128.42,3.84093453]
[1767353885289,0.6751384,128.45,128.42,3.84093453]
[1767353885490,5.77781294,128.44,128.42,3.84093453]
[1767353885790,0.6751384,128.45,128.42,3.84093453]
[1767353885982,5.77780841,128.44,128.42,3.84093453]
[1767353886185,0.6751384,128.45,128.42,3.84093453]
[1767353886491,5.77748417,128.44,128.42,2.70931343]
[1767353886789,0.6751384,128.45,128.42,2.70931343]
[1767353886990,5.77748268,128.44,128.42,2.70931343]
[1767353887196,0.6751384,128.45,128.42,0.69552182]
[1767353887489,5.77726863,128.44,128.42,2.70931343]
[1767353887684,0.6751384,128.45,128.42,2.70931343]
[1767353887880,6.45240703,128.44,128.42,2.01379161]
[1767353888086,0.6751384,128.44,128.41,10.49651254]
[1767353889195,0.6751384,128.44,128.42,0.69552182]
[1767353889801,14.8951384,128.46,128.42,9.80061958]
[1767353889973,5.77683404,128.45,128.43,2.70931343]
[1767353890169,14.8951384,128.46,128.43,2.70931343]
[1767353890580,14.8951384,128.46,128.43,0.69552182]
[1767353892180,14.8951384,128.46,128.43,2.70931343]
[1767353893192,14.8951384,128.46,128.43,0.69552182]
[1767353893399,14.8951384,128.46,128.43,2.70931343]
[1767353894590,0.6751384,128.46,128.43,2.70931343]
[1767353894889,2.68893001,128.46,128.43,0.69552182]
[1767353895094,0.6751384,128.45,128.43,0.69552182]
[1767353895494,7.78419511,128.47,128.43,0.69552182]
[1767353895695,13.65481655,128.46,128.43,0.69552182]
[1767353895891,0.6751384,128.45,128.42,7.78682797]
[1767353896097,7.78419511,128.47,128.4,72.79714113]
[1767353896098,2.01379161,128.44,128.4,72.79714113]
[1767353896394,0.6751384,128.43,128.4,0.69552182]
[1767353896693,0.6751384,128.43,128.4,8.48361829]
[1767353898579,0.6751384,128.43,128.4,10.4974099]
[1767353899787,0.6751384,128.43,128.4,8.48361829]
[1767353900297,0.6751384,128.42,128.39,72.79769384]
[1767353900481,2.68893001,128.42,128.39,8.48390223]
[1767353900885,0.6751384,128.41,128.39,8.48390223]
[1767353901486,0.6751384,128.41,128.39,8.48425743]
[1767353901684,0.6751384,128.43,128.37,0.69552182]
[1767353901892,14.22,128.44,128.36,130.7760913]
[1767353901893,0.6751384,128.41,128.39,0.69552182]
[1767353907699,0.6751384,128.41,128.38,2.67102248]
[1767353907908,0.6751384,128.41,128.38,0.65723087]
[1767353908987,0.6751384,128.41,128.38,10.46035466]
[1767353911705,0.6870029,128.43,128.4,0.65723087]
[1767353913002,0.6870029,128.43,128.39,9.8023276]
[1767353913306,0.6870029,128.43,128.39,10.45955847]
[1767353915918,0.6870029,128.43,128.4,2.01379161]
[1767353916409,0.6870029,128.43,128.4,2.67102248]
[1767353917710,0.6870029,128.43,128.41,0.65723087]
[1767353917918,0.6870029,128.43,128.41,2.67102248]
[1767353918704,0.6870029,128.43,128.41,0.65723087]
[1767353922211,0.6870029,128.43,128.39,9.80224262]
[1767353922409,0.6870029,128.43,128.41,0.65723087]
[1767353935525,0.6870029,128.42,128.39,0.65723087]
[1767353936012,0.67853813,128.41,128.39,0.65723087]
[1767353937528,7.78761402,128.41,128.38,0.69772111]
[1767353937732,0.67853813,128.4,128.38,0.69772111]
[1767353937934,7.78761402,128.41,128.38,0.69772111]
[1767353938137,8.46615215,128.41,128.38,0.69772111]
[1767353940108,0.67853813,128.4,128.37,0.69772111]
[1767353940314,0.67853813,128.4,128.37,9.80375768]
[1767353940534,0.67853813,128.4,128.38,0.69772111]
[1767353941131,0.67853813,128.44,128.4,0.69772111]
[1767353941332,0.67853813,128.46,128.43,2.71151272]
[1767353941538,5.76927173,128.45,128.43,2.71151272]
[1767353941731,0.67853813,128.46,128.43,2.71151272]
[1767353942034,5.76927753,128.45,128.43,0.69772111]
[1767353942209,0.67853813,128.46,128.43,2.71151272]
[1767353942617,22.68245655,128.47,128.44,2.71151272]
[1767353942842,5.7686601,128.46,128.44,2.71151272]
[1767353943038,5.7686601,128.46,128.42,10.49838965]
[1767353943039,0.67853813,128.46,128.42,10.49838965]
[1767353943231,0.67853813,128.46,128.43,2.71151272]
[1767353945323,7.78391842,128.47,128.44,2.71151272]
[1767353945528,8.46245655,128.47,128.44,2.71151272]
[1767353946740,8.46245655,128.47,128.44,3.84321587]
[1767353947946,0.67853813,128.47,128.44,3.84321587]
[1767353948942,0.67853813,128.47,128.45,3.14549476]
[1767353949145,0.67853813,128.47,128.45,3.11654069]
[1767353950240,0.67853813,128.47,128.44,0.69772111]
[1767353950441,0.67853813,128.47,128.45,3.14549476]
[1767353951852,0.67853813,128.46,128.44,3.14549476]
[1767353952853,0.67853813,128.47,128.45,3.14549476]
[1767353953227,0.67853813,128.47,128.44,0.69772111]
[1767353953545,0.67853813,128.47,128.45,3.14549476]
[1767353956147,8.46248575,128.47,128.44,3.84321587]
[1767353959951,11.60798051,128.47,128.44,0.69772111]
[1767353960257,11.60798051,128.47,128.44,3.84321587]
[1767353964357,10.92944238,128.47,128.44,3.84321587]
[1767353964660,0.67853813,128.46,128.44,3.84321587]
[1767353969261,0.67853813,128.46,128.44,0.69772111]
[1767353969460,0.67853813,128.46,128.44,3.84321587]
[1767353975866,0.67853813,128.46,128.43,3.80350345]
[1767353976455,0.67853813,128.46,128.43,3.14549476]
[1767353976650,0.67319597,128.43,128.4,0.65800869]
[1767353976855,0.67319597,128.42,128.4,0.65800869]
[1767353977172,0.67319597,128.42,128.39,11.59223518]
[1767353977664,0.67319597,128.41,128.39,0.65800869]
[1767353977842,0.67319597,128.39,128.35,0.65800869]
[1767353978042,14.09559251,128.4,128.33,7.79210616]
[1767353978043,0.67319597,128.35,128.33,0.65800869]
[1767353978238,3.81869073,128.35,128.33,0.65800869]
[1767353978463,0.67319597,128.35,128.33,3.80350345]
[1767353979265,0.67319597,128.35,128.33,0.65800869]
[1767353980764,14.89319597,128.37,128.34,3.14549476]
[1767353980961,14.22,128.37,128.35,0.65800869]
[1767353981375,14.89319597,128.37,128.34,3.80350345]
[1767353983662,0.67319597,128.37,128.34,11.5953008]
[1767353987873,0.67319597,128.37,128.35,0.65800869]
[1767353988060,14.22,128.38,128.35,0.65800869]
[1767353988061,18.03869073,128.38,128.35,0.65800869]
[1767353988366,0.67319597,128.37,128.35,0.65800869]
[1767353988573,0.67319597,128.37,128.34,11.5953008]
[1767353989971,3.81869073,128.37,128.34,0.65800869]
[1767353990475,0.67319597,128.37,128.34,3.80350345]
[1767353994986,0.67319597,128.37,128.34,11.59516617]
[1767353996486,0.67319597,128.37,128.35,3.14549476]
[1767353997361,11.60398263,128.39,128.35,3.14549476]
[1767353997561,11.60398263,128.39,128.36,0.69656253]
[1767353997783,3.81491061,128.39,128.36,0.69656253]
[1767353998289,0.66941585,128.39,128.36,3.84205729]
[1767354001190,8.45728458,128.41,128.37,3.14549476]
[1767354001362,0.66941585,128.47,128.39,0.69656253]
[1767354001561,0.66941585,128.43,128.4,3.14549476]
[1767354001886,0.66941585,128.42,128.4,3.14549476]
[1767354002263,0.66941585,128.42,128.39,0.69656253]
[1767354002475,0.66941585,128.42,128.39,3.84205729]
[1767354005378,0.66941585,128.42,128.4,3.14549476]
[1767354006488,0.66941585,128.42,128.4,2.01455831]
[1767354008187,0.66941585,128.42,128.39,2.71112084]
[1767354011082,0.66941585,128.42,128.39,0.69656253]
[1767354011286,0.66941585,128.42,128.39,2.71112084]
[1767354014593,2.01455831,128.41,128.34,10.36469668]
[1767354014784,0.66941585,128.38,128.35,10.50196373]
[1767354015099,0.66941585,128.38,128.34,0.69656253]
[1767354015100,0.66941585,128.37,128.34,0.69656253]
[1767354015286,0.66941585,128.37,128.34,2.71112084]
[1767354015797,0.66941585,128.37,128.35,2.01455831]
[1767354016001,0.66941585,128.37,128.35,2.71112084]
[1767354016293,0.66941585,128.37,128.35,0.69656253]
[1767354018078,0.66941585,128.37,128.34,0.69656253]
[1767354020894,0.66941585,128.35,128.32,0.69656253]
[1767354021393,2.68397416,128.33,128.31,0.1]
[1767354021575,0.66941585,128.31,128.28,0.79656253]
[1767354021775,16.90397416,128.31,128.28,0.79656253]
[1767354022498,16.90397416,128.31,128.28,8.5920025]
[1767354022674,2.01455831,128.3,128.28,0.79656253]
[1767354022881,2.01455831,128.3,128.28,0.1]
[1767354023086,0.66941585,128.29,128.28,0.1]
[1767354023285,0.66941585,128.29,128.27,0.1]
[1767354023286,2.68397416,128.29,128.27,0.1]
[1767354023483,2.65397416,128.29,128.27,0.1]
[1767354025682,2.67195011,128.28,128.27,0.1]
[1767354025875,2.67195011,128.28,128.25,0.80045865]
[1767354026575,16.91405767,128.27,128.25,0.1]
[1767354026775,8.44833995,128.27,128.25,0.1]
[1767354026999,10.46289826,128.27,128.25,0.1]
[1767354028902,11.14239762,128.27,128.25,0.1]
[1767354030102,8.44833995,128.27,128.25,0.1]
[1767354030403,8.41833995,128.27,128.25,0.1]
[1767354031299,47.31394376,128.33,128.27,0.69624444]
[1767354031300,0.67949936,128.31,128.27,0.69624444]
[1767354031600,14.24,128.29,128.27,0.69624444]
[1767354031793,16.93405767,128.3,128.27,0.69624444]
[1767354032981,24.72835368,128.3,128.27,0.69624444]
[1767354033509,24.72835368,128.3,128.26,2.01455831]
[1767354033510,24.72835368,128.3,128.26,2.71080275]
[1767354034610,22.71379537,128.3,128.26,2.71080275]
[1767354036704,2.01455831,128.29,128.26,0.69624444]
[1767354036902,2.69405767,128.29,128.26,0.69624444]
[1767354037808,2.69405767,128.28,128.25,0.1]
[1767354037987,16.93405767,128.28,128.25,0.1]
[1767354039405,14.91949936,128.28,128.25,0.1]
[1767354040298,22.71506567,128.28,128.25,0.1]
[1767354041022,24.69962398,128.28,128.25,0.1]
[1767354041195,2.01455831,128.27,128.25,0.1]
[1767354041690,9.81101159,128.27,128.25,0.1]
[1767354041889,24.05101159,128.27,128.25,0.1]
[1767354043122,24.73051095,128.27,128.25,0.1]
[1767354043610,2.01455831,128.26,128.25,0.1]
[1767354046196,16.93405767,128.27,128.25,0.1]
[1767354046397,14.91949936,128.27,128.25,0.1]
[1767354046593,16.93405767,128.27,128.25,0.1]
[1767354047389,24.73012253,128.27,128.25,0.1]
[1767354049310,22.71556422,128.27,128.25,0.1]
[1767354049499,24.73012253,128.27,128.25,0.1]
[1767354049915,22.71556422,128.27,128.25,0.1]
[1767354051704,14.91949936,128.27,128.25,0.1]
[1767354054412,22.03609449,128.27,128.25,0.1]
[1767354054616,0.59442864,128.25,128.23,1e-08]
[1767354054800,0.39442864,128.23,128.18,0.69624444]
[1767354055000,2.01455831,128.2,128.18,0.69624444]
[1767354055918,2.01455831,128.23,128.19,2.01455831]
[1767354056109,0.39442864,128.25,128.21,0.66685131]
[1767354056323,5.70843634,128.24,128.22,0.66685131]
[1767354056512,14.24,128.25,128.23,0.66685131]
[1767354056721,43.93521943,128.27,128.23,0.66685131]
[1767354056926,5.70941795,128.26,128.23,0.66685131]
[1767354057122,5.71363588,128.25,128.24,0.66685131]
[1767354057300,10.20508144,128.27,128.24,0.66685131]
[1767354057629,5.71382692,128.26,128.24,0.66685131]
[1767354057799,0.39442864,128.27,128.24,0.66685131]
[1767354057999,5.71341383,128.26,128.24,0.66685131]
[1767354058218,5.71849692,128.25,128.24,2.68140962]
[1767354058724,4.99349692,128.25,128.24,2.68140962]
[1767354058937,0.67788797,128.24,128.2,0.66685131]
[1767354059102,2.69244628,128.23,128.19,0.66685131]
[1767354059428,2.69244628,128.22,128.19,0.66685131]
[1767354060020,2.69244628,128.22,128.18,8.46806044]
[1767354060916,2.69244628,128.22,128.19,0.66685131]
[1767354061219,0.67788797,128.22,128.19,0.66685131]
[1767354061604,2.69244628,128.22,128.19,0.66685131]
[1767354061803,2.69244628,128.2,128.16,0.66685131]
[1767354062000,2.69244628,128.2,128.17,0.66685131]
[1767354064004,0.67788797,128.19,128.16,7.80239756]
[1767354064418,2.69244628,128.18,128.15,19.49444562]
[1767354064620,2.69244628,128.16,128.15,18.82759431]
[1767354064823,2.69244628,128.16,128.12,0.76685131]
[1767354065130,2.69244628,128.14,128.12,0.1]
[1767354065348,0.67788797,128.12,128.08,0.66685131]
[1767354065627,0.67788797,128.12,128.07,15.0]
[1767354065628,2.01455831,128.1,128.07,0.66685131]
[1767354065826,2.01455831,128.1,128.03,19.52577232]
[1767354065827,2.01455831,128.08,128.02,1.44797925]
[1767354066029,2.01455831,128.04,128.02,0.66685131]
[1767354066208,19.38958148,128.07,128.01,9.82624248]
[1767354066209,14.90685131,128.07,128.01,9.82624248]
[1767354066411,2.01455831,128.06,128.01,7.81168417]
[1767354066736,2.01455831,128.05,128.01,7.31168417]
[1767354066937,0.66685131,128.06,128.02,7.81117828]
[1767354067246,27.86525321,128.11,128.02,7.81117828]
[1767354067247,2.01455831,128.11,128.02,72.36050493]
[1767354067408,2.01455831,128.1,128.06,2.01455831]
[1767354067908,2.01455831,128.11,128.04,15.78100593]
[1767354068107,2.01455831,128.11,128.07,7.80822987]
[1767354068310,2.68140962,128.12,128.08,0.66685131]
[1767354068508,3.83016178,128.12,128.08,0.66685131]
[1767354068712,3.83016178,128.13,128.09,0.66685131]
[1767354068914,3.83016178,128.13,128.09,3.83016178]
[1767354069118,18.07016178,128.14,128.1,0.66685131]
[1767354069506,3.16331047,128.13,128.1,0.66685131]
[1767354071135,0.66685131,128.12,128.07,0.66685131]
[1767354071339,3.16331047,128.1,128.07,0.66685131]
[1767354071509,3.16331047,128.11,128.07,0.66685131]
[1767354071709,3.83016178,128.12,128.08,3.83016178]
[1767354072409,3.83016178,128.12,128.08,11.63777814]
[1767354072718,3.83016178,128.12,128.08,3.83016178]
[1767354073537,22.71153896,128.13,128.08,3.83016178]
[1767354073711,25.87484943,128.13,128.08,11.63771715]
[1767354074214,3.16331047,128.12,128.08,11.63771715]
[1767354074413,14.90685131,128.13,128.09,0.66685131]
[1767354074610,14.24,128.13,128.1,0.66685131]
[1767354074927,3.16331047,128.14,128.1,3.83016178]
[1767354075312,3.16331047,128.14,128.11,0.66685131]
[1767354075512,11.63374924,128.15,128.11,0.66685131]
[1767354076109,14.24,128.16,128.13,0.66685131]
[1767354076312,3.16331047,128.14,128.1,3.83016178]
[1767354076526,3.16331047,128.13,128.1,0.66685131]
[1767354077313,22.71116158,128.14,128.1,0.66685131]
[1767354077513,3.16331047,128.13,128.1,0.66685131]
[1767354078012,18.07016178,128.14,128.1,0.66685131]
[1767354078540,14.24,128.14,128.11,0.66685131]
[1767354078925,14.24,128.14,128.11,9.47579222]
[1767354079330,14.24,128.14,128.11,0.66685131]
[1767354080613,14.24,128.14,128.11,9.47579222]
[1767354080809,17.27809839,128.17,128.13,9.47579222]
[1767354081025,23.73579222,128.17,128.13,9.47579222]
[1767354081426,31.53795318,128.17,128.13,9.47579222]
[1767354082011,22.72901227,128.17,128.13,9.47579222]
[1767354082215,31.53795318,128.17,128.13,9.47579222]
[1767354082962,23.73579222,128.17,128.13,9.47579222]
[1767354083260,8.80894091,128.16,128.13,0.66685131]
[1767354083442,8.80894091,128.15,128.13,0.66685131]
[1767354083639,8.80894091,128.18,128.14,9.47579222]
[1767354083841,153.89416163,128.22,128.17,0.66685131]
[1767354083842,8.80894091,128.21,128.17,0.66685131]
[1767354084150,23.73579222,128.22,128.18,9.47579222]
[1767354084356,9.47579222,128.22,128.18,9.47579222]
[1767354084544,22.72614953,128.22,128.19,8.80894091]
[1767354085461,31.53509044,128.22,128.18,9.47579222]
[1767354085764,17.27509044,128.22,128.18,9.47579222]
[1767354086060,31.53509044,128.22,128.18,9.47579222]
[1767354086765,31.53509044,128.22,128.18,0.66685131]
[1767354086975,23.73579222,128.22,128.18,17.27724405]
[1767354087341,14.26,128.22,128.19,0.67018133]
[1767354087844,14.26,128.22,128.19,9.47912224]
[1767354088236,7.79856594,128.23,128.19,9.47912224]
[1767354088660,16.60750685,128.23,128.19,9.47912224]
[1767354089765,31.51390717,128.24,128.2,0.67018133]
[1767354090564,0.66685131,128.2,128.16,0.67018133]
[1767354090740,8.80894091,128.18,128.15,0.67018133]
[1767354090935,16.6107802,128.18,128.15,0.67018133]
[1767354091141,8.80894091,128.16,128.13,0.67018133]
[1767354092243,7.80183929,128.18,128.13,0.67018133]
[1767354092560,8.80894091,128.17,128.14,0.67018133]
[1767354092940,8.80894091,128.16,128.14,0.67018133]
[1767354094967,14.24,128.18,128.14,0.67018133]
[1767354095152,8.80894091,128.17,128.14,0.67018133]
[1767354095544,23.04894091,128.18,128.15,0.67018133]
[1767354095954,8.80894091,128.18,128.15,0.67018133]
[1767354097763,8.80894091,128.17,128.15,0.67018133]
[1767354100271,8.80894091,128.17,128.14,0.67018133]
[1767354103076,8.80894091,128.17,128.14,8.47404163]
[1767354104683,9.47579222,128.18,128.14,8.47404163]
[1767354105184,17.2773672,128.18,128.14,0.67018133]
[1767354105569,8.80894091,128.16,128.14,0.67018133]
[1767354109287,14.24,128.18,128.14,8.47410989]
[1767354109473,8.80894091,128.17,128.15,0.67018133]
[1767354110185,8.80894091,128.17,128.14,8.47410989]
[1767354111982,8.80894091,128.17,128.15,0.67018133]
[1767354112177,14.24,128.18,128.15,0.67018133]
[1767354112377,23.04894091,128.18,128.15,0.67018133]
[1767354113981,23.04894091,128.18,128.15,7.80320937]
[1767354114180,7.80055406,128.2,128.16,0.67018133]
[1767354114366,8.80894091,128.19,128.16,0.67018133]
[1767354115174,9.47579222,128.21,128.18,0.67018133]
[1767354115681,23.04894091,128.22,128.18,7.80148993]
[1767354115982,14.24,128.22,128.19,0.67018133]
[1767354116183,17.27460411,128.23,128.19,0.67018133]
[1767354116581,9.47579222,128.23,128.19,0.67018133]
[1767354116782,23.04894091,128.24,128.2,0.69626557]
[1767354117291,23.71579222,128.24,128.2,0.69626557]
[1767354117482,23.71579222,128.24,128.2,8.49647537]
[1767354118792,31.51374205,128.24,128.2,0.69626557]
[1767354119600,14.24,128.24,128.21,0.69626557]
[1767354119794,17.47327854,128.25,128.21,0.69626557]
[1767354120401,9.00894091,128.25,128.21,0.69626557]
[1767354120700,11.82102226,128.25,128.21,0.69626557]
[1767354121001,3.15688812,128.24,128.21,0.69626557]
[1767354121379,0.86685131,128.25,128.21,0.69626557]
[1767354121583,0.2,128.25,128.22,0.69626557]
[1767354121980,3.35688812,128.25,128.22,0.69626557]
[1767354122181,0.2,128.25,128.22,0.69626557]
[1767354122714,0.2,128.25,128.23,0.69626557]
[1767354122885,0.2,128.25,128.24,0.69626557]
[1767354123296,3.15688812,128.27,128.24,0.69626557]
[1767354123803,3.11783812,128.27,128.24,0.69626557]
[1767354124303,18.06373943,128.28,128.24,0.69626557]
[1767354124606,3.82373943,128.28,128.24,0.69626557]
[1767354124789,3.15688812,128.28,128.25,0.69626557]
[1767354125895,10.9523522,128.28,128.25,0.69626557]
[1767354126292,7.79546408,128.28,128.25,0.69626557]
[1767354126814,0.87940128,128.3,128.26,0.69626557]